[Event "Hungarian Rapid-ch 2022"]
[Site "Ajka"]
[Date "2022.07.16"]
[Round "8.7"]
[White "Varga, Zoltan"]
[Black "Horvath, Adam"]
[Result "1/2-1/2"]
[ECO "B44"]
[WhiteElo "2401"]
[BlackElo "2520"]
[Annotator "ChessBase"]
[PlyCount "97"]
[EventDate "2022.07.15"]
[EventType "swiss"]
[EventCountry "HUN"]
[SourceTitle "playchess.com"]
[Source "ChessBase"]
[SourceQuality "1"]
[TimeControl "900+10"]

1. e4 {[%emt 0:00:12]} c5 {[%emt 0:00:11]} 2. Nf3 {[%emt 0:00:02]} e6 {[%emt 0:00:07]} 3. d4 {[%emt 0:00:03]} cxd4 {[%emt 0:00:01]} 4. Nxd4 {[%emt 0:00:01]} Nc6 {[%emt 0:00:01]} 5. Nb5 {[%emt 0:00:40]} d6 {[%emt 0:00:02]} 6. Bf4 {[%emt 0:00:01]} e5 {[%emt 0:00:02]} 7. Be3 {[%emt 0:00:01]} Nf6 {[%emt 0:00:22]} 8. Bg5 {[%emt 0:00:02]} a6 {[%emt 0:00:38]} 9. N5c3 {[%emt 0:00:25]} Be7 {[%emt 0:00:13]} 10. Bxf6 {[%emt 0:00:08]} Bxf6 {[%emt 0:00:03]} 11. Bc4 {[%emt 0:00:01]} O-O {[%emt 0:00:29]} 12. O-O {[%emt 0:00:02]} Bg5 {[%emt 0:01:10]} 13. Nd5 {[%emt 0:00:01]} Kh8 {[%emt 0:00:21]} 14. Nbc3 {[%emt 0:00:02]} Be6 {[%emt 0:01:22]} 15. Ne2 {[%emt 0:01:21]} Rc8 {[%emt 0:00:23]} 16. c3 {[%emt 0:00:10]} Na5 {[%emt 0:01:17]} 17. Bb3 {[%emt 0:00:24]} f5 {[%emt 0:03:15]} 18. exf5 {[%emt 0:00:02]} Bxf5 {[%emt 0:00:12]} 19. Bc2 {[%emt 0:00:11]} Bg4 {[%emt 0:02:58]} 20. b3 {[%emt 0:00:02]} Nc6 {[%emt 0:00:42]} 21. Be4 {[%emt 0:00:17]} Ne7 {[%emt 0:00:09]} 22. f3 {[%emt 0:00:45]} Be6 {[%emt 0:00:15]} 23. Kh1 {[%emt 0:00:03]} Rc5 {[%emt 0:00:22]} 24. Nb4 {[%emt 0:00:44]} d5 {[%emt 0:00:22]} 25. Bc2 {[%emt 0:00:01]} Rc8 {[%emt 0:00:27]} 26. Nd3 {[%emt 0:00:01]} Ng6 {[%emt 0:00:18]} 27. Nf2 {[%emt 0:00:02]} Nf4 {[%emt 0:00:26]} 28. Nd3 {[%emt 0:01:49]} Ng6 {[%emt 0:02:01]} 29. Qe1 {[%emt 0:00:43]} Bf5 {[%emt 0:01:00]} 30. Rd1 {[%emt 0:00:24]} Qc7 {[%emt 0:00:23]} 31. Bb1 {[%emt 0:00:16]} a5 {[%emt 0:00:06]} 32. Nb2 {[%emt 0:04:03]} Bxb1 {[%emt 0:00:03]} 33. Rxb1 {[%emt 0:00:00]} Be3 {[%emt 0:00:36]} 34. c4 d4 {[%emt 0:00:08]} 35. Nd3 {[%emt 0:00:11]} b5 {[%emt 0:00:12]} 36. cxb5 {[%emt 0:00:33]} Qc2 {[%emt 0:00:17]} 37. Qd1 {[%emt 0:00:26]} Qxa2 {[%emt 0:00:07]} 38. b4 {[%emt 0:03:45]} axb4 {[%emt 0:00:08]} 39. Nxb4 {[%emt 0:00:02]} Qc4 {[%emt 0:00:09]} 40. b6 {[%emt 0:00:15]} Rb8 {[%emt 0:00:09]} 41. Nd3 Qc6 {[%emt 0:00:08]} 42. Qb3 {[%emt 0:01:31]} Rb7 {[%emt 0:00:18]} 43. Qb5 {[%emt 0:00:57]} Qxb5 {[%emt 0:00:12]} 44. Rxb5 {[%emt 0:00:01]} e4 {[%emt 0:00:02]} 45. Nc5 {[%emt 0:00:04]} exf3 {[%emt 0:00:07]} 46. Rxf3 {[%emt 0:00:18]} Ra8 {[%emt 0:00:11]} 47. Rf1 {[%emt 0:01:18]} d3 {[%emt 0:00:09]} 48. Nxd3 {[%emt 0:00:12]} Rxb6 {[%emt 0:00:01]} 49. Rxb6 {[%emt 0:00:00]} 1/2-1/2

[Event "Hungarian Rapid-ch 2022"]
[Site "Ajka"]
[Date "2022.07.16"]
[Round "8.8"]
[White "Krstulovic, Alex"]
[Black "Horvath, Csaba"]
[Result "1-0"]
[ECO "A47"]
[WhiteElo "2413"]
[BlackElo "2506"]
[Annotator "ChessBase"]
[PlyCount "63"]
[EventDate "2022.07.15"]
[EventType "swiss"]
[EventCountry "HUN"]
[SourceTitle "playchess.com"]
[Source "ChessBase"]
[SourceQuality "1"]
[TimeControl "900+10"]

1. d4 {[%emt 0:00:13]} Nf6 {[%emt 0:00:11]} 2. Nf3 {[%emt 0:00:02]} b6 {[%emt 0:00:02]} 3. Bf4 {[%emt 0:00:07]} Bb7 {[%emt 0:00:02]} 4. c4 {[%emt 0:00:03]} g6 {[%emt 0:00:30]} 5. Nc3 {[%emt 0:00:02]} Bg7 {[%emt 0:00:01]} 6. Qc2 {[%emt 0:00:02]} d6 {[%emt 0:00:19]} 7. e4 {[%emt 0:00:02]} Nbd7 {[%emt 0:00:04]} 8. Be2 {[%emt 0:00:20]} O-O {[%emt 0:00:05]} 9. Rd1 {[%emt 0:00:03]} c6 {[%emt 0:01:11]} 10. e5 {[%emt 0:01:18]} Ne8 {[%emt 0:00:48]} 11. O-O {[%emt 0:00:18]} dxe5 {[%emt 0:01:11]} 12. dxe5 {[%emt 0:00:02]} Nc7 {[%emt 0:00:07]} 13. Ng5 {[%emt 0:01:58]} Qe8 {[%emt 0:00:48]} 14. Qe4 {[%emt 0:00:22]} Nc5 {[%emt 0:00:43]} 15. Qe3 {[%emt 0:00:02]} N5e6 {[%emt 0:01:36]} 16. Nxe6 {[%emt 0:03:04]} Nxe6 {[%emt 0:00:03]} 17. Bg3 {[%emt 0:00:28]} c5 {[%emt 0:01:14]} 18. Bf3 {[%emt 0:00:38]} Bxf3 {[%emt 0:00:25]} 19. Qxf3 {[%emt 0:00:02]} Nd4 {[%emt 0:00:12]} 20. Qb7 {[%emt 0:00:48]} e6 {[%emt 0:01:36]} 21. Rfe1 {[%emt 0:00:24]} Qc8 {[%emt 0:01:11]} 22. Qe4 {[%emt 0:02:20]} Rd8 {[%emt 0:00:20]} 23. Bh4 {[%emt 0:00:21]} Rd7 {[%emt 0:00:03]} 24. Nb5 {[%emt 0:00:08]} Nc6 {[%emt 0:02:20]} 25. Nd6 {[%emt 0:00:43]} Qc7 {[%emt 0:00:01]} 26. f4 {[%emt 0:00:11]} Bf8 {[%emt 0:00:55]} 27. Bf6 {[%emt 0:01:13]} a6 {[%emt 0:00:33]} 28. Rd3 {[%emt 0:00:45]} Rb8 {[%emt 0:01:09]} 29. f5 {[%emt 0:02:03]} exf5 {[%emt 0:00:32]} 30. Qh4 {[%emt 0:00:41]} Nd4 {[%emt 0:00:51]} 31. Rh3 {[%emt 0:00:15]} h6 {[%emt 0:00:08]} 32. Qxh6 {[%emt 0:00:12]} 1-0

[Event "Hungarian Rapid-ch 2022"]
[Site "Ajka"]
[Date "2022.07.16"]
[Round "8.9"]
[White "Bagi, Mate"]
[Black "Papp, Bence"]
[Result "1-0"]
[ECO "C48"]
[WhiteElo "2460"]
[BlackElo "2244"]
[Annotator "ChessBase"]
[PlyCount "135"]
[EventDate "2022.07.15"]
[EventType "swiss"]
[EventCountry "HUN"]
[SourceTitle "playchess.com"]
[Source "ChessBase"]
[SourceQuality "1"]
[TimeControl "900+10"]

1. e4 {[%emt 0:00:13]} e5 {[%emt 0:00:11]} 2. Nf3 {[%emt 0:00:01]} Nf6 {[%emt 0:00:02]} 3. Nc3 {[%emt 0:00:05]} Nc6 {[%emt 0:00:01]} 4. Bb5 {[%emt 0:00:01]} Nd4 {[%emt 0:00:02]} 5. Bc4 {[%emt 0:00:05]} Bc5 {[%emt 0:00:03]} 6. d3 {[%emt 0:00:11]} d6 {[%emt 0:00:06]} 7. Na4 {[%emt 0:00:36]} Bg4 {[%emt 0:00:56]} 8. Nxc5 {[%emt 0:00:13]} Bxf3 {[%emt 0:00:02]} 9. gxf3 {[%emt 0:00:09]} dxc5 {[%emt 0:00:02]} 10. c3 {[%emt 0:00:23]} Ne6 {[%emt 0:00:36]} 11. Qb3 {[%emt 0:00:43]} Qc8 {[%emt 0:00:38]} 12. Rg1 {[%emt 0:00:38]} O-O {[%emt 0:02:37]} 13. Be3 {[%emt 0:00:38]} b6 {[%emt 0:00:15]} 14. O-O-O {[%emt 0:00:44]} Nf4 {[%emt 0:01:15]} 15. Bxf4 {[%emt 0:01:52]} exf4 {[%emt 0:00:02]} 16. e5 {[%emt 0:00:11]} Ne8 {[%emt 0:01:20]} 17. e6 {[%emt 0:01:43]} Nd6 {[%emt 0:00:02]} 18. exf7+ {[%emt 0:00:19]} Kh8 {[%emt 0:00:29]} 19. Bd5 {[%emt 0:00:30]} Rb8 {[%emt 0:00:27]} 20. Rg5 {[%emt 0:00:55]} Qd8 {[%emt 0:02:30]} 21. Rdg1 {[%emt 0:00:14]} Qf6 {[%emt 0:00:01]} 22. Rxg7 {[%emt 0:00:35]} Qxg7 {[%emt 0:00:02]} 23. Rxg7 {[%emt 0:00:01]} Kxg7 {[%emt 0:00:02]} 24. Qa4 {[%emt 0:00:10]} Nxf7 {[%emt 0:01:16]} 25. Qxf4 {[%emt 0:00:14]} Rbd8 {[%emt 0:00:09]} 26. Be4 {[%emt 0:01:30]} Rd6 {[%emt 0:00:59]} 27. Qg3+ {[%emt 0:01:01]} Kh8 {[%emt 0:00:04]} 28. Qh4 {[%emt 0:00:11]} Nh6 {[%emt 0:00:34]} 29. Qe7 {[%emt 0:00:27]} Rf7 {[%emt 0:00:02]} 30. Qe8+ {[%emt 0:00:16]} Kg7 {[%emt 0:00:02]} 31. Qe5+ {[%emt 0:00:05]} Rdf6 {[%emt 0:00:31]} 32. Bd5 {[%emt 0:00:21]} Rd7 {[%emt 0:00:13]} 33. Be4 {[%emt 0:00:34]} Rdf7 {[%emt 0:00:26]} 34. a4 {[%emt 0:00:13]} a5 {[%emt 0:00:23]} 35. Kc2 {[%emt 0:00:06]} Ng8 {[%emt 0:00:35]} 36. h4 {[%emt 0:00:28]} Re7 {[%emt 0:00:58]} 37. Qg5+ {[%emt 0:00:26]} Kf8 {[%emt 0:00:05]} 38. h5 {[%emt 0:00:34]} Rg7 {[%emt 0:00:10]} 39. Qd5 {[%emt 0:00:14]} Re7 {[%emt 0:00:49]} 40. Kb3 {[%emt 0:00:36]} Rd6 {[%emt 0:00:15]} 41. Qf5+ {[%emt 0:00:23]} Rf6 {[%emt 0:00:07]} 42. Qc8+ {[%emt 0:00:05]} Kg7 {[%emt 0:00:02]} 43. Bd5 {[%emt 0:00:10]} Nh6 {[%emt 0:00:08]} 44. Qh3 {[%emt 0:00:15]} Rf5 {[%emt 0:00:27]} 45. Be4 {[%emt 0:00:14]} Rg5 {[%emt 0:00:01]} 46. Qh4 {[%emt 0:00:12]} Ree5 {[%emt 0:01:13]} 47. f4 {[%emt 0:00:38]} Rg4 {[%emt 0:00:19]} 48. Qd8 {[%emt 0:00:18]} Rxf4 {[%emt 0:00:09]} 49. Qxc7+ {[%emt 0:00:03]} Nf7 {[%emt 0:00:01]} 50. Bd5 {[%emt 0:00:37]} Ref5 {[%emt 0:01:09]} 51. Bxf7 {[%emt 0:00:29]} Rxf7 {[%emt 0:00:01]} 52. Qxb6 {[%emt 0:00:02]} R7f5 {[%emt 0:00:12]} 53. h6+ {[%emt 0:00:04]} Kf7 {[%emt 0:00:21]} 54. Qc7+ {[%emt 0:00:07]} Kg6 {[%emt 0:00:14]} 55. Qg7+ {[%emt 0:00:02]} Kh5 {[%emt 0:00:01]} 56. Qxh7 {[%emt 0:00:05]} Rf6 {[%emt 0:00:17]} 57. Qc7 Kxh6 {[%emt 0:00:21]} 58. Qxc5 {[%emt 0:00:27]} R6f5 {[%emt 0:00:07]} 59. Qb6+ {[%emt 0:00:14]} Kg5 {[%emt 0:00:01]} 60. d4 {[%emt 0:00:14]} Rxf2 {[%emt 0:00:02]} 61. d5 {[%emt 0:00:05]} R2f4 {[%emt 0:00:25]} 62. d6 {[%emt 0:00:11]} Rd5 {[%emt 0:00:05]} 63. d7 {[%emt 0:00:12]} Rf8 {[%emt 0:00:10]} 64. Qe6 {[%emt 0:00:23]} Rb8+ {[%emt 0:00:27]} 65. Kc2 {[%emt 0:00:15]} Rf5 {[%emt 0:00:01]} 66. Qe7+ {[%emt 0:00:08]} Kg4 {[%emt 0:00:05]} 67. d8=Q {[%emt 0:00:16]} Rf2+ {[%emt 0:00:02]} 68. Qd2 {[%emt 0:00:10]} 1-0

[Event "Hungarian Rapid-ch 2022"]
[Site "Ajka"]
[Date "2022.07.16"]
[Round "8.10"]
[White "Egresi, Mate"]
[Black "Korpa, Bence"]
[Result "1/2-1/2"]
[ECO "A40"]
[WhiteElo "2376"]
[BlackElo "2537"]
[Annotator "ChessBase"]
[PlyCount "84"]
[EventDate "2022.07.15"]
[EventType "swiss"]
[EventCountry "HUN"]
[SourceTitle "playchess.com"]
[Source "ChessBase"]
[SourceQuality "1"]
[TimeControl "900+10"]

1. d4 {[%emt 0:00:12]} g6 {[%emt 0:00:18]} 2. c4 {[%emt 0:00:02]} Bg7 {[%emt 0:00:01]} 3. Nc3 {[%emt 0:00:01]} e6 {[%emt 0:00:03]} 4. e4 {[%emt 0:00:06]} Ne7 {[%emt 0:00:02]} 5. Nf3 {[%emt 0:00:09]} d5 {[%emt 0:00:03]} 6. Bg5 {[%emt 0:02:41]} f6 {[%emt 0:00:10]} 7. Be3 {[%emt 0:00:25]} dxe4 {[%emt 0:00:12]} 8. Nxe4 {[%emt 0:00:02]} Nf5 {[%emt 0:00:04]} 9. h4 {[%emt 0:01:27]} Nxe3 {[%emt 0:00:52]} 10. fxe3 {[%emt 0:00:02]} f5 {[%emt 0:00:08]} 11. Nc3 {[%emt 0:00:31]} c5 {[%emt 0:02:07]} 12. Qa4+ {[%emt 0:02:40]} Bd7 {[%emt 0:00:46]} 13. Qb3 {[%emt 0:00:18]} cxd4 {[%emt 0:03:05]} 14. exd4 {[%emt 0:00:06]} Nc6 {[%emt 0:00:06]} 15. O-O-O {[%emt 0:00:14]} O-O {[%emt 0:00:04]} 16. Kb1 {[%emt 0:00:44]} Rc8 {[%emt 0:00:11]} 17. h5 {[%emt 0:01:57]} g5 {[%emt 0:01:00]} 18. h6 {[%emt 0:00:06]} Bf6 {[%emt 0:00:06]} 19. d5 {[%emt 0:01:15]} Na5 {[%emt 0:00:55]} 20. Qb4 {[%emt 0:00:02]} Be7 {[%emt 0:01:21]} 21. d6 {[%emt 0:00:14]} Bf6 {[%emt 0:00:02]} 22. Bd3 {[%emt 0:02:20]} g4 {[%emt 0:00:28]} 23. Nd2 {[%emt 0:00:03]} Nc6 {[%emt 0:00:20]} 24. Qa3 {[%emt 0:00:02]} Ne5 {[%emt 0:01:50]} 25. Nb3 {[%emt 0:00:03]} Nxc4 {[%emt 0:01:42]} 26. Bxc4 {[%emt 0:00:01]} Rxc4 {[%emt 0:00:01]} 27. Qxa7 {[%emt 0:00:05]} b6 {[%emt 0:01:26]} 28. Rhe1 {[%emt 0:00:54]} Qc8 {[%emt 0:00:43]} 29. Qxb6 {[%emt 0:00:55]} Rxc3 {[%emt 0:00:29]} 30. bxc3 {[%emt 0:00:01]} Qxc3 {[%emt 0:00:02]} 31. Rd2 {[%emt 0:00:10]} f4 {[%emt 0:01:01]} 32. Qc7 {[%emt 0:00:11]} Be8 {[%emt 0:00:15]} 33. Qxc3 {[%emt 0:01:07]} Bxc3 {[%emt 0:00:01]} 34. Rxe6 {[%emt 0:00:06]} Bxd2 {[%emt 0:00:02]} 35. Nxd2 {[%emt 0:00:02]} f3 {[%emt 0:00:23]} 36. gxf3 {[%emt 0:00:08]} gxf3 {[%emt 0:00:09]} 37. Kb2 {[%emt 0:01:07]} f2 {[%emt 0:00:07]} 38. Re7 {[%emt 0:00:12]} Bb5 {[%emt 0:00:27]} 39. d7 {[%emt 0:00:23]} Rd8 {[%emt 0:00:19]} 40. Rg7+ {[%emt 0:00:02]} Kf8 {[%emt 0:00:07]} 41. Rxh7 {[%emt 0:00:10]} Rxd7 {[%emt 0:00:07]} 42. Rxd7 {[%emt 0:00:01]} Bxd7 {[%emt 0:00:02]} 1/2-1/2

[Event "Hungarian Rapid-ch 2022"]
[Site "Ajka"]
[Date "2022.07.16"]
[Round "8.11"]
[White "Tolnai, Tibor"]
[Black "Kolimar, Kristof Pal"]
[Result "1-0"]
[ECO "B40"]
[WhiteElo "2433"]
[BlackElo "2160"]
[Annotator "ChessBase"]
[PlyCount "197"]
[EventDate "2022.07.15"]
[EventType "swiss"]
[EventCountry "HUN"]
[SourceTitle "playchess.com"]
[Source "ChessBase"]
[SourceQuality "1"]
[TimeControl "900+10"]

1. e4 {[%emt 0:00:12]} c5 {[%emt 0:00:12]} 2. Nf3 {[%emt 0:00:02]} e6 {[%emt 0:00:01]} 3. d4 {[%emt 0:00:03]} cxd4 {[%emt 0:00:01]} 4. Nxd4 {[%emt 0:00:01]} Qb6 {[%emt 0:00:08]} 5. Nb3 {[%emt 0:00:11]} Qc7 {[%emt 0:00:01]} 6. f4 {[%emt 0:00:17]} d6 {[%emt 0:00:18]} 7. Nc3 {[%emt 0:00:02]} a6 {[%emt 0:00:00]} 8. Qf3 {[%emt 0:00:05]} b5 {[%emt 0:00:14]} 9. Bd3 {[%emt 0:00:02]} Bb7 {[%emt 0:00:10]} 10. Be3 {[%emt 0:00:25]} Nf6 {[%emt 0:00:16]} 11. a3 {[%emt 0:01:06]} Nc6 {[%emt 0:00:27]} 12. g4 {[%emt 0:00:14]} Be7 {[%emt 0:01:01]} 13. g5 {[%emt 0:00:02]} Nd7 {[%emt 0:00:01]} 14. h4 {[%emt 0:00:40]} Nc5 {[%emt 0:00:22]} 15. Nxc5 {[%emt 0:01:44]} dxc5 {[%emt 0:00:01]} 16. Qf2 {[%emt 0:00:29]} O-O-O {[%emt 0:01:19]} 17. O-O-O {[%emt 0:00:49]} Nd4 {[%emt 0:00:16]} 18. Rhe1 {[%emt 0:00:31]} h6 {[%emt 0:02:35]} 19. Bf1 {[%emt 0:00:32]} hxg5 {[%emt 0:02:07]} 20. hxg5 {[%emt 0:00:01]} g6 {[%emt 0:00:28]} 21. Kb1 {[%emt 0:00:05]} Qb6 {[%emt 0:01:40]} 22. Bg2 {[%emt 0:00:36]} Kb8 {[%emt 0:00:52]} 23. Rd3 {[%emt 0:01:02]} Rd7 {[%emt 0:04:15]} 24. Red1 {[%emt 0:00:04]} Rhd8 {[%emt 0:00:43]} 25. Ne2 {[%emt 0:00:57]} f5 {[%emt 0:00:34]} 26. gxf6 {[%emt 0:00:31]} Bxf6 {[%emt 0:00:02]} 27. e5 {[%emt 0:00:33]} Bh4 {[%emt 0:00:24]} 28. Qxh4 {[%emt 0:03:16]} Bxg2 {[%emt 0:00:01]} 29. Bxd4 {[%emt 0:01:24]} cxd4 {[%emt 0:00:01]} 30. Qf2 {[%emt 0:00:02]} Be4 {[%emt 0:00:19]} 31. Rxd4 {[%emt 0:00:01]} Qc5 {[%emt 0:00:57]} 32. R1d2 {[%emt 0:00:33]} Rxd4 {[%emt 0:00:06]} 33. Nxd4 {[%emt 0:00:07]} Bd5 {[%emt 0:00:35]} 34. b3 {[%emt 0:01:14]} Rc8 {[%emt 0:00:03]} 35. Qe3 {[%emt 0:00:27]} Kb7 {[%emt 0:00:07]} 36. Kb2 {[%emt 0:00:06]} a5 {[%emt 0:00:04]} 37. Qd3 {[%emt 0:01:25]} Kb6 {[%emt 0:00:11]} 38. Ne2 {[%emt 0:00:23]} b4 {[%emt 0:00:10]} 39. axb4 {[%emt 0:00:01]} axb4 {[%emt 0:00:00]} 40. Qd4 {[%emt 0:00:07]} Rh8 {[%emt 0:00:06]} 41. Nc1 Qxd4+ {[%emt 0:00:08]} 42. Rxd4 Kc5 43. Rd2 {[%emt 0:00:23]} Rh4 {[%emt 0:00:10]} 44. Nd3+ {[%emt 0:00:01]} Kb5 {[%emt 0:00:01]} 45. Re2 {[%emt 0:00:11]} Rg4 {[%emt 0:00:09]} 46. c4+ {[%emt 0:00:14]} bxc3+ {[%emt 0:00:01]} 47. Kxc3 {[%emt 0:00:01]} g5 {[%emt 0:00:19]} 48. fxg5 {[%emt 0:00:16]} Rxg5 {[%emt 0:00:13]} 49. Re3 {[%emt 0:00:05]} Rf5 {[%emt 0:00:06]} 50. Ne1 {[%emt 0:00:06]} Rf2 {[%emt 0:00:13]} 51. Nc2 {[%emt 0:00:01]} Rf8 {[%emt 0:00:21]} 52. Nd4+ {[%emt 0:00:03]} Kc5 {[%emt 0:00:05]} 53. Rg3 {[%emt 0:00:09]} Rh8 {[%emt 0:00:23]} 54. b4+ {[%emt 0:00:05]} Kb6 {[%emt 0:00:02]} 55. Rg6 {[%emt 0:00:41]} Rh3+ {[%emt 0:00:30]} 56. Kd2 {[%emt 0:00:01]} Rh5 {[%emt 0:00:01]} 57. Nxe6 {[%emt 0:00:13]} Rxe5 {[%emt 0:00:01]} 58. Nd4+ {[%emt 0:00:05]} Kb7 {[%emt 0:00:02]} 59. Rf6 {[%emt 0:00:23]} Re4 {[%emt 0:00:13]} 60. Kd3 {[%emt 0:00:01]} Rh4 {[%emt 0:00:01]} 61. b5 {[%emt 0:00:13]} Rh3+ {[%emt 0:00:12]} 62. Kd2 {[%emt 0:00:01]} Bc4 {[%emt 0:00:01]} 63. Kc2 {[%emt 0:00:47]} Bxb5 {[%emt 0:01:07]} 64. Nxb5 {[%emt 0:00:02]} Rh2+ {[%emt 0:00:01]} 65. Kc3 {[%emt 0:00:02]} Rh3+ {[%emt 0:00:04]} 66. Kc4 {[%emt 0:00:01]} Rh4+ {[%emt 0:00:01]} 67. Nd4 {[%emt 0:00:03]} Rh5 {[%emt 0:00:03]} 68. Nf5 {[%emt 0:00:04]} Rh1 {[%emt 0:00:04]} 69. Kd5 {[%emt 0:00:01]} Rd1+ {[%emt 0:00:02]} 70. Nd4 {[%emt 0:00:01]} Rc1 {[%emt 0:00:07]} 71. Nb3 {[%emt 0:00:17]} Rd1+ {[%emt 0:00:13]} 72. Kc5 {[%emt 0:00:01]} Kc7 {[%emt 0:00:02]} 73. Nd4 {[%emt 0:00:02]} Kd7 {[%emt 0:00:16]} 74. Rf7+ {[%emt 0:00:01]} Ke8 {[%emt 0:00:00]} 75. Ra7 {[%emt 0:00:02]} Kf8 {[%emt 0:00:11]} 76. Kd5 {[%emt 0:00:01]} Re1 {[%emt 0:00:01]} 77. Nf5 {[%emt 0:00:04]} Re2 {[%emt 0:00:04]} 78. Kd6 {[%emt 0:00:06]} Re1 {[%emt 0:00:06]} 79. Nd4 {[%emt 0:00:02]} Rd1 {[%emt 0:00:16]} 80. Ke5 {[%emt 0:00:05]} Re1+ {[%emt 0:00:02]} 81. Kf6 {[%emt 0:00:10]} Rf1+ {[%emt 0:00:20]} 82. Nf5 {[%emt 0:00:03]} Ke8 {[%emt 0:00:00]} 83. Rh7 {[%emt 0:00:06]} Kd8 {[%emt 0:00:04]} 84. Ke5 {[%emt 0:00:13]} Re1+ {[%emt 0:00:16]} 85. Kd5 {[%emt 0:00:02]} Kc8 {[%emt 0:00:27]} 86. Nd6+ {[%emt 0:00:09]} Kb8 {[%emt 0:00:01]} 87. Rb7+ {[%emt 0:00:04]} Ka8 {[%emt 0:00:00]} 88. Rb2 {[%emt 0:00:02]} Rd1+ {[%emt 0:00:06]} 89. Kc6 {[%emt 0:00:07]} Rc1+ {[%emt 0:00:07]} 90. Kd7 {[%emt 0:00:08]} Ka7 {[%emt 0:00:08]} 91. Ne4 {[%emt 0:00:25]} Rd1+ {[%emt 0:00:18]} 92. Kc6 {[%emt 0:00:02]} Rc1+ {[%emt 0:00:01]} 93. Nc5 {[%emt 0:00:01]} Ka8 {[%emt 0:00:28]} 94. Rb5 {[%emt 0:00:01]} Ra1 {[%emt 0:00:37]} 95. Kc7 {[%emt 0:00:49]} Ka7 {[%emt 0:00:28]} 96. Rb6 {[%emt 0:00:14]} Ra5 {[%emt 0:00:18]} 97. Kc6 {[%emt 0:00:03]} Ka8 {[%emt 0:00:03]} 98. Ne6 {[%emt 0:00:10]} Ka7 {[%emt 0:00:06]} 99. Rb7+ {[%emt 0:00:01]} 1-0

[Event "Hungarian Rapid-ch 2022"]
[Site "Ajka"]
[Date "2022.07.16"]
[Round "8.12"]
[White "Csiszar, Csaba"]
[Black "Kelemen, David"]
[Result "1-0"]
[ECO "A48"]
[WhiteElo "2389"]
[BlackElo "2136"]
[Annotator "ChessBase"]
[PlyCount "59"]
[EventDate "2022.07.15"]
[EventType "swiss"]
[EventCountry "HUN"]
[SourceTitle "playchess.com"]
[Source "ChessBase"]
[SourceQuality "1"]
[TimeControl "900+10"]

1. d4 {[%emt 0:00:14]} Nf6 {[%emt 0:00:11]} 2. Nf3 {[%emt 0:00:01]} g6 {[%emt 0:00:02]} 3. c4 {[%emt 0:00:01]} Bg7 {[%emt 0:00:01]} 4. Nc3 {[%emt 0:00:01]} O-O {[%emt 0:00:02]} 5. Bf4 {[%emt 0:00:02]} d6 {[%emt 0:00:06]} 6. e3 {[%emt 0:00:01]} Nbd7 {[%emt 0:00:43]} 7. Be2 {[%emt 0:00:02]} c6 {[%emt 0:01:28]} 8. O-O {[%emt 0:00:04]} Re8 {[%emt 0:01:10]} 9. h3 {[%emt 0:00:02]} h6 {[%emt 0:00:20]} 10. Rc1 {[%emt 0:00:13]} Nh7 {[%emt 0:00:54]} 11. d5 {[%emt 0:00:29]} c5 {[%emt 0:01:32]} 12. e4 {[%emt 0:00:04]} b5 {[%emt 0:00:15]} 13. cxb5 {[%emt 0:00:19]} a6 {[%emt 0:00:01]} 14. a4 {[%emt 0:00:02]} axb5 {[%emt 0:00:43]} 15. axb5 {[%emt 0:00:18]} Nb6 {[%emt 0:00:35]} 16. Qd2 {[%emt 0:00:05]} g5 {[%emt 0:00:02]} 17. Bh2 {[%emt 0:00:26]} Bb7 {[%emt 0:01:35]} 18. Rfe1 {[%emt 0:00:43]} Nf6 {[%emt 0:00:47]} 19. Bd3 {[%emt 0:00:01]} Nfd7 {[%emt 0:00:54]} 20. Bg3 {[%emt 0:00:26]} c4 {[%emt 0:00:45]} 21. Bc2 {[%emt 0:00:17]} Nc5 {[%emt 0:00:02]} 22. Nd4 {[%emt 0:00:05]} Nba4 {[%emt 0:01:13]} 23. Rb1 {[%emt 0:05:42]} Nxc3 {[%emt 0:01:07]} 24. Qxc3 {[%emt 0:01:15]} Qb6 {[%emt 0:00:56]} 25. Qxc4 {[%emt 0:00:08]} Rec8 {[%emt 0:00:24]} 26. Nc6 {[%emt 0:00:04]} Bxc6 {[%emt 0:00:32]} 27. bxc6 {[%emt 0:00:07]} Bxb2 {[%emt 0:00:49]} 28. e5 {[%emt 0:00:07]} Qa5 {[%emt 0:00:21]} 29. exd6 {[%emt 0:00:10]} exd6 {[%emt 0:00:03]} 30. Bxd6 {[%emt 0:00:05]} 1-0

[Event "Hungarian Rapid-ch 2022"]
[Site "Ajka"]
[Date "2022.07.16"]
[Round "8.13"]
[White "Leviczky, Tibor"]
[Black "Horvath, Kristof"]
[Result "1-0"]
[ECO "D41"]
[WhiteElo "2281"]
[BlackElo "2053"]
[Annotator "ChessBase"]
[PlyCount "95"]
[EventDate "2022.07.15"]
[EventType "swiss"]
[EventCountry "HUN"]
[SourceTitle "playchess.com"]
[Source "ChessBase"]
[SourceQuality "1"]
[TimeControl "900+10"]

1. Nf3 {[%emt 0:00:13]} d5 {[%emt 0:00:11]} 2. d4 {[%emt 0:00:03]} Nf6 {[%emt 0:00:04]} 3. c4 {[%emt 0:00:02]} e6 {[%emt 0:00:02]} 4. Nc3 {[%emt 0:00:02]} c5 {[%emt 0:00:07]} 5. cxd5 {[%emt 0:00:16]} exd5 {[%emt 0:00:02]} 6. g3 {[%emt 0:00:03]} c4 {[%emt 0:00:20]} 7. Bg2 {[%emt 0:00:34]} Bb4 {[%emt 0:00:20]} 8. O-O {[%emt 0:01:00]} Bxc3 {[%emt 0:00:04]} 9. bxc3 {[%emt 0:00:02]} O-O {[%emt 0:00:12]} 10. Bg5 {[%emt 0:01:09]} h6 {[%emt 0:02:50]} 11. Bxf6 {[%emt 0:00:05]} Qxf6 {[%emt 0:00:02]} 12. Nd2 {[%emt 0:00:17]} Be6 {[%emt 0:01:32]} 13. Rb1 {[%emt 0:00:28]} Nd7 {[%emt 0:00:29]} 14. e4 {[%emt 0:07:00]} Nb6 {[%emt 0:00:11]} 15. a4 {[%emt 0:00:32]} dxe4 {[%emt 0:00:07]} 16. Nxe4 {[%emt 0:00:20]} Qg6 {[%emt 0:01:11]} 17. Nc5 {[%emt 0:00:14]} Bd5 {[%emt 0:00:09]} 18. Bxd5 {[%emt 0:00:21]} Nxd5 {[%emt 0:00:02]} 19. Qf3 {[%emt 0:00:06]} Rfd8 {[%emt 0:01:27]} 20. Rxb7 {[%emt 0:01:06]} Qf6 {[%emt 0:00:27]} 21. Qxf6 {[%emt 0:00:16]} gxf6 {[%emt 0:00:01]} 22. Rc1 {[%emt 0:00:05]} f5 {[%emt 0:01:49]} 23. a5 {[%emt 0:00:10]} a6 {[%emt 0:00:20]} 24. Na4 {[%emt 0:00:30]} f4 {[%emt 0:01:09]} 25. Kg2 {[%emt 0:00:21]} fxg3 {[%emt 0:00:35]} 26. hxg3 {[%emt 0:00:02]} Re8 {[%emt 0:00:13]} 27. Rh1 {[%emt 0:00:23]} Re6 {[%emt 0:00:04]} 28. Nb6 {[%emt 0:00:29]} Nxb6 {[%emt 0:00:20]} 29. axb6 {[%emt 0:00:04]} Kg7 {[%emt 0:00:43]} 30. Ra1 {[%emt 0:00:12]} a5 {[%emt 0:00:19]} 31. Ra4 {[%emt 0:00:04]} Rc6 {[%emt 0:00:01]} 32. Kf3 {[%emt 0:00:20]} Ra6 {[%emt 0:00:46]} 33. Rc7 {[%emt 0:00:40]} Rf6+ {[%emt 0:00:11]} 34. Ke4 {[%emt 0:00:36]} Raxb6 {[%emt 0:00:02]} 35. d5 {[%emt 0:00:05]} Rxf2 {[%emt 0:00:09]} 36. Raxc4 {[%emt 0:00:08]} Re2+ {[%emt 0:00:07]} 37. Kd3 {[%emt 0:00:11]} Rbb2 {[%emt 0:00:20]} 38. Rf4 {[%emt 0:00:12]} Rbd2+ {[%emt 0:00:15]} 39. Kc4 {[%emt 0:00:02]} a4 {[%emt 0:00:01]} 40. Ra7 {[%emt 0:00:19]} Kg6 {[%emt 0:02:03]} 41. Rxa4 {[%emt 0:00:16]} f5 {[%emt 0:00:01]} 42. Ra8 {[%emt 0:00:29]} Re4+ {[%emt 0:00:15]} 43. Kc5 {[%emt 0:00:14]} Re3 {[%emt 0:00:37]} 44. c4 {[%emt 0:00:05]} Kf6 {[%emt 0:00:10]} 45. Rf8+ {[%emt 0:00:05]} Ke7 {[%emt 0:00:01]} 46. R8xf5 {[%emt 0:00:04]} Rxg3 {[%emt 0:00:10]} 47. Rf7+ {[%emt 0:00:02]} Ke8 {[%emt 0:00:02]} 48. Rf8+ {[%emt 0:00:04]} 1-0